[Event "7th Gashimov Memorial-Blitz 2021"]
[Site "Baku"]
[Date "2021.12.22"]
[Round "1"]
[White "Karjakin, Sergey"]
[Black "Rapport, Richard"]
[Result "0-1"]
[ECO "E94"]
[WhiteElo "2743"]
[BlackElo "2763"]
[Annotator "RC"]
[PlyCount "82"]
[EventDate "2021.12.17"]
[EventType "tourn"]
[EventCountry "AZE"]
[SourceTitle "playchess.com"]
[Source "ChessBase"]
[SourceQuality "1"]
[TimeControl "180+2"]

1. d4 {[%emt 0:00:00]} Nf6 {[%emt 0:00:00]} 2. c4 {[%emt 0:00:00]} g6 {[%emt 0:
00:00]} 3. Nc3 {[%emt 0:00:00]} Bg7 {[%emt 0:00:00]} 4. e4 {[%emt 0:00:00]} d6
{[%emt 0:00:00]} 5. Nf3 {[%emt 0:00:00]} O-O {[%emt 0:00:00]} 6. Be2 {[%emt 0:
00:00]} e5 {[%emt 0:00:00]} 7. O-O {[%emt 0:00:00]} Na6 {[%emt 0:00:00]} 8. Re1
{[%emt 0:00:00]} Qe8 {[%emt 0:00:00]} 9. dxe5 {[%emt 0:00:00]} dxe5 {[%emt 0:
00:00]} 10. a3 {[%emt 0:00:00]} Bg4 {[%emt 0:00:00]} 11. b4 {[%emt 0:00:00]}
Rd8 {[%emt 0:00:00]} 12. Qc2 {[%emt 0:00:00]} Nb8 {[%emt 0:00:00]} 13. b5 {
[%emt 0:00:00]} Nh5 {[%emt 0:00:15]} 14. Bg5 {[%emt 0:00:00]} Rc8 {[%emt 0:00:
23]} 15. Be3 {[%emt 0:00:13]} Nd7 {[%emt 0:00:12]} 16. h3 {[%emt 0:00:27]} Be6
{[%emt 0:00:16]} 17. Rad1 {[%emt 0:00:21]} Nf4 {[%emt 0:00:12]} 18. Bf1 {
[%emt 0:00:01]} c6 {[%emt 0:00:04]} 19. Qa4 {[%emt 0:00:16]} Nb6 {[%emt 0:00:
38]} 20. Qxa7 {[%emt 0:00:49]} Nxc4 {[%emt 0:00:00]} 21. Bc5 {[%emt 0:00:01]}
cxb5 {[%emt 0:00:56]} 22. Bxf8 {[%emt 0:00:05]} Bxf8 {[%emt 0:00:00]} 23. Nd5 {
[%emt 0:00:14]} Bxd5 {[%emt 0:00:21]} 24. exd5 {[%emt 0:00:00]} Bc5 {[%emt 0:
00:04]} 25. Qxb7 {[%emt 0:00:00]} Nd6 {[%emt 0:00:00]} 26. Qa6 {[%emt 0:00:04]}
e4 {[%emt 0:00:06]} 27. Nd4 {[%emt 0:00:12]} Qe5 {[%emt 0:00:00]} 28. Nb3 {
[%emt 0:00:50]} Nxh3+ {[%emt 0:00:08]} 29. gxh3 {[%emt 0:00:01]} Qg3+ {[%emt 0:
00:00]} 30. Kh1 {[%emt 0:00:03]} Bxf2 {[%emt 0:00:04]} 31. Bg2 {[%emt 0:00:00]}
Bxe1 {[%emt 0:00:03]} 32. Nd4 {[%emt 0:00:01]} Bc3 {[%emt 0:00:08]} 33. Ne2 {
[%emt 0:00:06]} Qe5 {[%emt 0:00:12]} 34. Rc1 {[%emt 0:00:00]} e3 {[%emt 0:00:
00]} 35. Bf3 {[%emt 0:00:08]} Kg7 {[%emt 0:00:05]} 36. Rxc3 {[%emt 0:00:00]}
Rxc3 {[%emt 0:00:01]} 37. Nxc3 {[%emt 0:00:00]} Qxc3 {[%emt 0:00:02]} 38. Qxd6
{[%emt 0:00:01]} Qe1+ {[%emt 0:00:01]} 39. Kh2 {[%emt 0:00:00]} Qf2+ {[%emt 0:
00:01]} 40. Bg2 {[%emt 0:00:00]} e2 {[%emt 0:00:00]} 41. Qe5+ {[%emt 0:00:01]}
Kh6 {[%emt 0:00:05]} 0-1

[Event "7th Gashimov Memorial-Blitz 2021"]
[Site "Baku"]
[Date "2021.12.23"]
[Round "12"]
[White "Karjakin, Sergey"]
[Black "Caruana, Fabiano"]
[Result "1/2-1/2"]
[ECO "C89"]
[WhiteElo "2743"]
[BlackElo "2792"]
[Annotator "RC"]
[PlyCount "72"]
[EventDate "2021.12.17"]
[EventType "tourn"]
[EventCountry "AZE"]
[SourceTitle "playchess.com"]
[Source "ChessBase"]
[SourceQuality "1"]
[TimeControl "180+2"]

1. e4 {[%emt 0:00:00]} e5 {[%emt 0:00:00]} 2. Nf3 {[%emt 0:00:00]} Nc6 {
[%emt 0:00:00]} 3. Bb5 {[%emt 0:00:00]} a6 {[%emt 0:00:00]} 4. Ba4 {[%emt 0:00:
00]} Nf6 {[%emt 0:00:00]} 5. O-O {[%emt 0:00:00]} Be7 {[%emt 0:00:00]} 6. Re1 {
[%emt 0:00:00]} b5 {[%emt 0:00:00]} 7. Bb3 {[%emt 0:00:00]} O-O {[%emt 0:00:00]
} 8. c3 {[%emt 0:00:00]} d5 {[%emt 0:00:00]} 9. exd5 {[%emt 0:00:00]} Nxd5 {
[%emt 0:00:00]} 10. Nxe5 {[%emt 0:00:00]} Nxe5 {[%emt 0:00:00]} 11. Rxe5 {
[%emt 0:00:00]} c6 {[%emt 0:00:00]} 12. d3 {[%emt 0:00:00]} Bd6 {[%emt 0:00:00]
} 13. Re1 {[%emt 0:00:00]} Bf5 {[%emt 0:00:00]} 14. Qf3 {[%emt 0:00:00]} Qh4 {
[%emt 0:00:00]} 15. g3 {[%emt 0:00:00]} Qh3 {[%emt 0:00:00]} 16. Be3 {[%emt 0:
00:00]} Bxd3 {[%emt 0:00:00]} 17. Nd2 {[%emt 0:00:00]} Bf5 {[%emt 0:00:00]} 18.
Bxd5 {[%emt 0:00:00]} cxd5 {[%emt 0:00:00]} 19. Qxd5 {[%emt 0:00:00]} Rfd8 {
[%emt 0:00:00]} 20. Qg2 {[%emt 0:00:00]} Qxg2+ {[%emt 0:00:00]} 21. Kxg2 {
[%emt 0:00:00]} b4 {[%emt 0:00:00]} 22. Bd4 {[%emt 0:00:00]} bxc3 {[%emt 0:00:
00]} 23. Bxc3 {[%emt 0:00:00]} Be6 {[%emt 0:00:00]} 24. f3 {[%emt 0:00:00]} a5
{[%emt 0:00:00]} 25. a3 {[%emt 0:00:00]} a4 {[%emt 0:00:00]} 26. Ne4 {[%emt 0:
00:00]} Be7 {[%emt 0:00:00]} 27. Rad1 {[%emt 0:00:00]} h6 {[%emt 0:00:00]} 28.
Bb4 {[%emt 0:00:00]} Bxb4 {[%emt 0:00:18]} 29. axb4 {[%emt 0:00:00]} Rab8 {
[%emt 0:00:13]} 30. Rxd8+ {[%emt 0:00:09]} Rxd8 {[%emt 0:00:00]} 31. Nc3 {
[%emt 0:00:06]} Bc4 {[%emt 0:01:14]} 32. Rd1 {[%emt 0:00:32]} Rb8 {[%emt 0:00:
14]} 33. Rd4 {[%emt 0:00:06]} Rxb4 {[%emt 0:00:01]} 34. Kg1 {[%emt 0:00:09]}
Rxb2 {[%emt 0:00:52]} 35. Rxc4 {[%emt 0:00:00]} Rc2 {[%emt 0:00:00]} 36. Rxa4 {
[%emt 0:00:05]} Rxc3 {[%emt 0:00:00]} 1/2-1/2